bitfinex-derivatives/quotes_ETHF0:USTF0_20250106
["timestamp","ask_amount","ask_price","bid_price","bid_amount"]
[1736184111485,3.47851,3693.0,3692.9,2.1472304]
[1736184112384,3.2078,3693.0,3692.9,2.1472304]
[1736184112590,1.3048,3693.2,3693.1,0.2707]
[1736184112788,3.2078,3693.4,3693.3,0.27069]
[1736184112989,3.2078,3693.4,3693.3,2.1472304]
[1736184112990,3.47848,3693.4,3693.3,2.1472304]
[1736184113290,0.27071,3693.0,3692.9,1.40971]
[1736184113489,0.4351,3693.3,3693.0,0.27071]
[1736184113687,0.70579,3693.3,3693.2,2.1472304]
[1736184113989,0.27066,3693.7,3693.5,0.27067]
[1736184114188,0.27063,3694.1,3693.8,0.27065]
[1736184114380,0.27062,3694.3,3694.0,2.4178604]
[1736184114581,0.27062,3694.3,3694.2,2.1472304]
[1736184115289,1.1414,3694.6,3694.2,2.1472304]
[1736184115492,1.1414,3694.6,3694.3,0.27061]
[1736184115684,1.1414,3694.6,3694.5,2.1472304]
[1736184115886,0.8708,3694.6,3694.5,2.1472304]
[1736184116085,3.47838,3694.8,3694.5,2.4178304]
[1736184116289,3.2078,3694.8,3694.6,41.07059]
[1736184116589,3.2078,3694.8,3694.6,40.8]
[1736184116785,0.27059,3694.7,3694.6,40.8]
[1736184117285,3.47838,3694.8,3694.5,3.5568304]
[1736184117485,3.47838,3694.8,3694.5,3.2862304]
[1736184117892,3.47838,3694.8,3694.5,3.5568304]
[1736184118296,3.2078,3694.8,3694.5,3.2862304]
[1736184118593,3.47838,3694.8,3694.5,3.2862304]
[1736184118785,3.47838,3694.8,3694.5,3.5568304]
[1736184119185,3.47838,3694.8,3694.5,3.2862304]
[1736184119186,3.2078,3694.8,3694.5,3.2862304]
[1736184119798,3.2078,3694.8,3694.7,0.27059]
[1736184120291,1.3336,3695.3,3694.5,8.6412608]
[1736184120493,0.8908,3695.3,3695.2,2.4177804]
[1736184120789,0.4394,3695.9,3695.2,2.1472304]
[1736184120989,0.8757,3696.2,3695.8,2.1472304]
[1736184121192,0.27048,3696.1,3695.8,2.1472304]
[1736184121380,0.27048,3696.1,3694.5,2.8237304]
[1736184121381,3.2078,3695.9,3695.3,1.139]
[1736184121585,3.2078,3695.9,3695.5,2.1472304]
[1736184121586,0.27052,3695.6,3695.5,2.1472304]
[1736184122196,0.27054,3695.3,3695.2,2.1472304]
[1736184122896,1.14494,3695.3,3695.2,2.1472304]
[1736184125585,1.14494,3695.3,3695.2,2.4177804]
[1736184125889,0.8744,3695.3,3694.7,40.8]
[1736184126088,0.27058,3694.8,3694.6,2.1472304]
[1736184126291,0.27059,3694.7,3694.6,2.1472304]
[1736184126489,3.2078,3695.0,3694.3,2.1472304]
[1736184126692,0.27061,3694.4,3694.3,2.1472304]
[1736184127790,3.2078,3694.5,3694.3,2.1472304]
[1736184127791,3.4784,3694.5,3694.3,2.1472304]
[1736184127986,0.4552,3694.4,3694.3,2.1472304]
[1736184128190,0.72581,3694.4,3694.3,2.1472304]
[1736184128392,1.15051,3694.4,3694.3,2.1472304]
[1736184129295,0.8799,3694.4,3694.3,2.1472304]
[1736184129589,0.8799,3694.4,3694.3,2.4178404]
[1736184129796,0.4552,3694.4,3694.3,2.4178404]
[1736184130600,0.72581,3694.4,3694.3,2.1472304]
[1736184130800,0.4552,3694.4,3694.3,2.4178404]
[1736184131097,3.6402,3694.9,3694.3,2.4178404]
[1736184131098,3.2078,3694.9,3694.3,2.1472304]
[1736184131299,3.2078,3694.9,3694.8,2.4178104]
[1736184131697,3.47837,3694.9,3694.8,2.1472304]
[1736184131900,3.93097,3694.9,3694.8,42.9472304]
[1736184132698,3.93097,3694.9,3694.8,40.8]
[1736184132894,0.27059,3694.6,3694.5,2.1472304]
[1736184133398,0.27059,3694.6,3694.5,42.9472304]
[1736184133995,0.8496,3694.8,3694.5,42.9472304]
[1736184134395,0.27059,3694.7,3694.5,42.9472304]
[1736184134604,0.8496,3694.8,3694.5,42.9472304]
[1736184134605,0.4261,3694.8,3694.7,0.27059]
[1736184134905,3.2078,3695.4,3694.6,0.2712]
[1736184135101,3.2078,3695.4,3695.3,2.4177704]
[1736184135302,3.2078,3695.4,3695.3,3.5557704]
[1736184135804,3.2078,3695.4,3695.3,44.3557704]
[1736184137798,4.36249,3696.1,3695.3,44.7615904]
[1736184137999,4.36249,3696.1,3696.0,2.1472304]
[1736184138805,4.36249,3696.1,3696.0,2.4177204]
[1736184139303,4.36249,3696.1,3696.0,2.1472304]
[1736184139707,4.36249,3696.1,3696.0,2.4177204]
[1736184140008,3.92919,3696.1,3696.0,2.4177204]
[1736184140703,3.92918,3696.1,3696.0,2.4177204]
[1736184142308,3.92918,3696.1,3696.0,2.1472304]
[1736184142907,0.2705,3695.9,3695.8,0.2705]
[1736184144104,3.6587,3696.1,3695.7,2.1472304]
[1736184144309,3.92918,3696.1,3696.0,2.1472304]
[1736184145310,3.92918,3696.1,3696.0,2.4177204]
[1736184145606,3.92918,3696.1,3696.0,2.1472304]
[1736184145801,3.2078,3696.1,3696.0,4.2944608]
[1736184146004,3.2078,3696.8,3696.0,7.5022608]
[1736184146206,0.27044,3696.8,3696.7,2.4176604]
[1736184146604,0.27044,3696.8,3696.1,0.3818]
[1736184146605,0.27048,3696.2,3696.1,0.27048]
[1736184146907,0.27048,3696.2,3696.1,2.4177104]
[1736184147102,3.88389,3696.8,3696.1,2.1472304]
[1736184147303,0.27048,3696.2,3696.1,2.1472304]
[1736184148301,3.2078,3696.8,3696.1,2.1472304]
[1736184148606,3.47823,3696.8,3696.7,2.1472304]
[1736184149409,3.2078,3696.8,3696.4,2.1472304]
[1736184149710,0.27045,3696.5,3696.4,2.1472304]
[1736184150117,0.4302,3696.7,3695.7,40.8]
[1736184150410,0.2705,3695.9,3695.8,0.2705]
[1736184150708,0.27049,3696.1,3696.0,0.27048]
[1736184150912,3.2078,3696.5,3695.8,40.8]
[1736184151115,0.27049,3696.2,3696.1,0.27048]
[1736184151311,0.27049,3696.2,3696.1,2.4177104]
[1736184151524,0.27049,3696.2,3696.1,2.1472304]
[1736184151811,0.27049,3696.2,3696.1,2.4177104]
[1736184152707,0.27049,3696.1,3696.0,0.27049]
[1736184153212,0.4341,3696.4,3695.8,42.9472304]
[1736184153413,0.2705,3695.9,3695.8,44.3547304]
[1736184153615,0.2705,3695.9,3695.8,43.2177304]
[1736184153811,0.2705,3695.9,3695.8,42.9472304]
[1736184154815,0.2705,3695.9,3695.8,2.1472304]
[1736184155414,0.2705,3695.9,3695.8,2.4177304]
[1736184156211,1.1665,3696.0,3695.9,0.2705]
[1736184156414,0.896,3696.0,3695.8,2.1472304]
[1736184156612,0.2705,3695.9,3695.8,2.4177304]
[1736184157513,0.896,3696.0,3695.8,2.1472304]
[1736184157713,1.16649,3696.0,3695.9,0.2705]
[1736184158215,0.896,3696.0,3695.8,2.1472304]
[1736184158415,0.2705,3695.9,3695.8,2.4177304]
[1736184158617,0.896,3696.0,3695.8,2.1472304]
[1736184158818,1.1665,3696.0,3695.9,0.2705]
[1736184159120,0.4341,3696.4,3695.8,5.3550304]
[1736184159313,0.27048,3696.3,3696.2,2.4177004]
[1736184159618,0.27046,3696.4,3696.3,0.27046]
[1736184159815,3.6237,3696.5,3696.2,2.1472304]
[1736184160119,0.27047,3696.4,3696.3,0.27046]
[1736184160515,3.6237,3696.5,3695.9,2.1472304]
[1736184161016,3.6237,3696.5,3696.2,0.27047]
[1736184161017,0.27048,3696.3,3696.2,0.27047]
[1736184161216,3.2078,3696.5,3696.2,2.1472304]
[1736184161419,3.47826,3696.5,3696.4,0.27046]
[1736184163219,0.8469,3696.6,3696.2,5.3550304]
[1736184163415,0.8469,3696.6,3696.5,0.27045]
[1736184163823,0.8469,3696.6,3696.5,2.4176804]
[1736184164823,0.4251,3696.6,3696.5,2.4176804]
[1736184165021,3.51299868,3697.0,3696.5,2.1472304]
[1736184165219,3.78341868,3697.0,3696.9,0.27042]
[1736184165414,3.09089868,3697.0,3696.9,0.27042]
[1736184165814,3.09089868,3697.0,3696.9,41.07042]
[1736184166424,0.2704,3697.3,3697.2,0.2704]
[1736184166820,3.09089868,3697.6,3697.4,0.27039]
[1736184167021,3.09089868,3697.6,3697.5,0.27038]
[1736184167322,3.09089868,3697.6,3697.5,41.07038]
[1736184167529,3.36126868,3697.6,3697.5,41.07038]
[1736184168130,0.8613,3697.7,3697.2,1.137]
[1736184168321,0.2704,3697.4,3697.3,0.27039]
[1736184168523,0.2704,3697.3,3697.2,1.4074]
[1736184169121,0.2704,3697.3,3697.2,42.2074]
[1736184169327,0.8613,3697.7,3697.2,41.937]
[1736184169629,0.27039,3697.4,3697.3,0.27039]
[1736184170423,6.29869868,3698.0,3697.9,0.27035]
[1736184170424,3.09089868,3698.0,3697.9,0.27035]
[1736184171017,3.36123868,3698.0,3697.9,0.27035]
[1736184171218,0.27038,3697.6,3697.5,1.40737]
[1736184171423,0.27038,3697.6,3697.5,1.137]
[1736184171723,0.27038,3697.6,3697.5,1.40738]
[1736184172235,3.2078,3698.0,3697.5,1.137]
[1736184172730,3.47815,3698.0,3697.9,0.27035]
[1736184172919,3.2078,3698.0,3697.9,0.27035]
[1736184174428,3.47814,3698.0,3697.9,0.27035]
[1736184174629,0.27037,3697.8,3697.7,0.27036]
[1736184175723,3.2078,3698.0,3697.8,0.27035]
[1736184175724,0.27035,3697.9,3697.8,0.27035]
[1736184176126,3.2078,3698.0,3697.5,1.137]
[1736184176325,3.47815,3698.0,3697.9,0.27035]
[1736184180131,0.27035,3698.0,3697.9,0.27035]
[1736184180833,0.4567,3698.1,3698.0,0.27034]
[1736184181431,0.4567,3698.1,3698.0,41.07034]
[1736184181632,0.4567,3698.1,3697.5,6.4920304]
[1736184181834,0.27036,3697.9,3697.8,0.27035]
[1736184182135,0.4567,3698.1,3697.9,0.27034]
[1736184182136,0.27035,3698.0,3697.9,0.27034]
[1736184182530,0.27035,3697.9,3697.8,0.27036]
[1736184182835,0.4567,3698.1,3697.5,2.4176104]
[1736184182836,0.27037,3697.6,3697.5,2.4176104]
[1736184183036,0.67589,3697.9,3697.2,2.1472304]
[1736184183223,0.2704,3697.4,3697.3,0.27039]
[1736184183623,0.4504,3697.4,3697.3,0.27039]
[1736184183829,0.72079,3697.4,3697.3,0.27039]
[1736184185136,0.2704,3697.2,3697.1,3.4782]
[1736184187230,0.2704,3697.2,3697.1,3.47821]
[1736184188228,0.4504,3697.4,3697.1,3.2078]
[1736184188434,3.09089868,3697.7,3697.6,0.27037]
[1736184188635,4.13831365,3697.9,3697.6,3.2832304]
[1736184188836,4.13831365,3697.9,3697.8,0.27036]
[1736184189332,4.81420365,3697.9,3697.1,3.2078]
[1736184189538,0.2704,3697.3,3697.2,0.27039]
[1736184189740,0.2704,3697.2,3697.1,3.47821]
[1736184190737,0.2704,3697.2,3697.1,3.2078]
[1736184191245,3.88375,3697.6,3696.8,2.1472304]
[1736184191536,6.32868715,3697.6,3697.1,2.4176304]
[1736184191727,3.12088715,3697.6,3697.4,2.1472304]
[1736184191933,3.12088715,3697.6,3697.5,0.27038]
[1736184192632,3.12088715,3697.6,3697.5,41.07038]
[1736184192839,0.27036,3697.9,3697.8,0.27035]
[1736184193143,3.2078,3698.0,3697.5,42.9472304]
[1736184193439,0.27037,3697.7,3697.6,0.27037]
[1736184193639,3.2078,3698.0,3697.5,42.9472304]
[1736184193834,0.4477,3697.9,3697.5,42.9472304]
[1736184194030,0.27037,3697.6,3697.5,42.9472304]
[1736184194338,0.27037,3697.6,3697.5,43.2176104]
[1736184194529,0.27037,3697.6,3697.5,42.9472304]
[1736184194732,0.4215,3697.8,3697.2,6.9258304]
[1736184194932,0.2704,3697.3,3697.2,3.7180304]
[1736184195138,0.2704,3697.3,3697.2,3.9884304]
[1736184195337,0.2704,3697.3,3697.2,40.8]
[1736184195540,0.67592,3697.7,3697.1,0.27041]
[1736184195738,0.2704,3697.2,3697.1,0.27041]
[1736184196236,0.2704,3697.2,3697.1,41.07041]
[1736184196950,0.2704,3697.2,3697.1,40.8]
[1736184197143,0.67594,3697.6,3696.9,2.4176504]
[1736184197331,0.27042,3697.0,3696.9,2.4176504]
[1736184197530,0.27042,3697.0,3696.9,2.1472304]
[1736184197739,0.27042,3697.0,3696.9,2.4176504]
[1736184198138,0.4439,3697.4,3696.9,2.1472304]
[1736184198640,6.32868715,3697.6,3696.8,3.2078]
[1736184198843,0.67596,3697.5,3696.9,0.27042]
[1736184199049,6.32868715,3697.6,3696.8,5.3550304]
[1736184199346,6.32868715,3697.6,3697.1,2.1472304]
[1736184199347,0.2704,3697.3,3697.1,2.1472304]
[1736184199646,3.12088715,3697.6,3697.5,0.27038]
[1736184199839,3.12088715,3697.6,3697.5,2.4176104]
[1736184200542,3.39125715,3697.6,3697.5,2.4176104]
[1736184200842,0.27037,3697.6,3697.5,2.4176104]
[1736184201046,0.4215,3697.8,3697.5,2.1472304]
[1736184201346,0.27037,3697.6,3697.5,2.4176004]
[1736184201545,0.27037,3697.7,3697.6,0.27037]
[1736184201939,0.27037,3697.7,3697.6,41.07037]
[1736184202742,0.4215,3697.8,3697.7,0.27037]
[1736184203044,3.12088715,3697.9,3697.8,0.27036]
[1736184203845,3.39123715,3697.9,3697.8,0.27036]
[1736184204942,0.27037,3697.8,3697.7,0.27036]
[1736184205142,3.2078,3698.0,3697.5,2.1472304]
[1736184205348,0.27039,3697.4,3697.3,0.27039]
[1736184205548,0.27042,3697.1,3697.0,0.27041]
[1736184206151,0.27042,3697.0,3696.9,2.1472304]
[1736184206543,0.27042,3697.0,3696.9,2.4176504]
[1736184207045,0.27042,3697.0,3696.9,0.27042]
[1736184207250,0.27042,3697.0,3696.9,2.4176504]
[1736184209352,3.40080393,3697.0,3696.9,2.4176504]
[1736184210851,3.40080393,3697.0,3696.9,43.2176504]
[1736184213254,0.27042,3697.0,3696.9,43.2176504]
[1736184213560,0.27042,3697.1,3697.0,0.27041]
[1736184214960,0.27042,3697.0,3696.9,43.2176504]
[1736184216760,3.40380735,3697.0,3696.9,43.2176504]
[1736184217155,3.40380735,3697.0,3696.9,40.8]
[1736184218055,4.13831365,3697.0,3696.3,2.1472304]
[1736184218361,0.27046,3696.6,3696.5,0.27044]
[1736184218561,0.27046,3696.6,3696.5,41.07044]
[1736184218755,0.27046,3696.6,3696.5,40.8]
[1736184218956,1.12557,3696.9,3696.4,0.27046]
[1736184219154,0.71285,3696.5,3696.4,0.27046]
[1736184220780,3.84504336,3696.5,3696.4,0.27046]
[1736184221281,3.57459336,3696.5,3696.4,0.27046]
[1736184221873,0.69075,3696.6,3696.3,2.1472304]
[1736184221874,3.13219336,3696.6,3696.5,0.27045]
[1736184222277,1.48409336,3696.6,3696.5,5.27045]
[1736184222480,1.10229336,3696.6,3696.5,46.07045]
[1736184222979,4.85828365,3697.7,3697.6,0.27037]
[1736184223978,4.58791365,3697.7,3697.6,0.27037]
[1736184224176,0.4496,3697.7,3697.6,0.27037]
[1736184224881,0.4496,3697.7,3697.6,41.07037]
[1736184227685,5.30255365,3698.1,3698.0,0.27034]
[1736184227887,5.75485365,3698.1,3698.0,0.27034]
[1736184228280,5.75485365,3698.1,3697.8,2.1472304]
[1736184228281,0.27035,3698.0,3697.9,0.27035]
[1736184228974,0.27036,3697.8,3697.7,0.27035]
[1736184230087,0.27036,3697.9,3697.8,0.27035]
[1736184230786,0.27036,3697.8,3697.7,0.27036]
[1736184231678,0.27035,3697.9,3697.5,3.2832304]
[1736184231882,0.27035,3697.9,3697.8,0.27036]
[1736184232380,0.27035,3697.9,3697.5,3.2832304]
[1736184232381,0.27037,3697.8,3697.7,0.27036]
[1736184233386,0.27036,3697.9,3697.8,0.27035]
[1736184233583,1.3462,3698.1,3697.5,3.2832304]
[1736184233784,0.27035,3698.0,3697.9,0.27035]
[1736184235685,1.3462,3698.1,3697.8,2.1472304]
[1736184235987,1.61655,3698.1,3698.0,0.27034]
[1736184237485,0.27036,3697.8,3697.6,0.27037]
[1736184237686,0.27036,3697.8,3697.5,3.9591804]
[1736184237988,0.27036,3697.8,3697.7,0.27037]
[1736184238590,1.3462,3698.1,3697.5,3.9591804]
[1736184238792,0.27034,3698.0,3697.9,0.27034]
[1736184239291,1.61655,3698.1,3698.0,0.27034]
[1736184240591,1.3462,3698.1,3698.0,0.27034]
[1736184241690,1.61654,3698.1,3698.0,0.27034]
[1736184241890,1.61654,3698.1,3697.9,0.27035]
[1736184241891,0.27035,3698.0,3697.9,0.27035]
[1736184243183,1.3462,3698.1,3698.0,0.27034]
[1736184243184,1.61655,3698.1,3698.0,0.27034]
[1736184244295,1.3462,3698.1,3697.5,3.9591804]
[1736184244497,0.27036,3697.9,3697.8,0.27035]
[1736184245497,1.3462,3698.1,3697.5,3.9591804]
[1736184245701,0.27035,3698.0,3697.9,0.27034]
[1736184246391,0.27035,3698.0,3697.6,0.67593]
[1736184246392,1.3462,3698.1,3697.5,3.2832304]
[1736184246597,1.3462,3698.1,3698.0,0.27034]
[1736184247001,1.61654,3698.1,3698.0,0.27034]
[1736184247494,1.61654,3698.1,3697.9,0.27035]
[1736184247495,0.27036,3698.0,3697.9,0.27035]
[1736184248995,1.3462,3698.1,3697.4,5.01877]
[1736184249202,0.27038,3697.5,3697.4,4.61318]
[1736184249396,0.27038,3697.7,3697.6,0.27036]
[1736184250503,4.13831365,3697.9,3697.4,4.3428]
[1736184250802,0.27038,3697.6,3697.5,0.27038]
[1736184251606,4.13831365,3697.8,3697.7,0.27037]
[1736184252605,4.40867365,3697.8,3697.7,41.07037]
[1736184252904,4.40867365,3697.8,3697.7,0.27037]
[1736184253205,7.19495206,3698.1,3697.5,0.27037]
[1736184253206,0.27038,3697.6,3697.5,0.27037]
[1736184253595,3.2078,3697.7,3697.4,40.8]
[1736184253795,0.2704,3697.4,3697.3,0.27039]
[1736184254202,1.1678,3697.4,3697.3,0.27039]
[1736184256002,0.8974,3697.4,3696.9,46.1550304]
[1736184256203,0.2704,3697.3,3697.2,0.27039]
[1736184257003,0.27042,3697.1,3697.0,0.27041]
[1736184259604,3.2078,3697.3,3697.2,0.2704]
[1736184260400,3.47819,3697.3,3697.2,0.2704]
[1736184261299,3.2078,3697.3,3697.2,0.2704]
[1736184261500,0.4401,3697.4,3697.3,0.27039]
[1736184264507,0.71049,3697.4,3697.3,0.27039]
[1736184264703,0.4401,3697.4,3697.3,0.27039]
[1736184264904,0.71049,3697.4,3697.3,0.27039]
[1736184265205,4.13831365,3697.7,3697.3,0.27039]
[1736184265411,4.40868365,3697.7,3697.6,0.27037]
[1736184266706,0.27037,3697.7,3697.6,0.27037]
[1736184266908,0.4426,3697.8,3697.6,2.1472304]
[1736184267105,0.71296,3697.8,3697.7,0.27037]
[1736184268512,4.89320453,3697.8,3697.7,0.27037]
[1736184268912,0.27038,3697.6,3697.5,0.27037]
[1736184269108,0.27039,3697.5,3697.4,0.27038]
[1736184270711,0.27039,3697.5,3697.0,6.4900304]
[1736184270712,0.27041,3697.3,3697.2,0.27039]
[1736184271409,0.27039,3697.3,3697.2,0.27039]
[1736184273311,5.04434453,3697.4,3697.0,2.1472304]
[1736184273509,0.27041,3697.2,3697.1,0.27041]
[1736184282111,4.18024453,3697.3,3697.2,0.2704]
[1736184283116,4.45063453,3697.3,3697.2,0.2704]
[1736184283319,0.27039,3697.3,3697.2,0.2704]
[1736184283708,0.27041,3697.2,3697.1,0.27041]
[1736184285918,4.18024453,3697.3,3697.0,2.1472304]
[1736184286234,4.18024453,3697.3,3697.2,0.2704]
[1736184286235,4.45064453,3697.3,3697.2,0.2704]
[1736184287723,4.45066453,3697.3,3697.2,0.2704]
[1736184291020,0.27042,3697.3,3697.2,0.2704]
[1736184293830,0.27044,3697.2,3697.1,0.27043]
[1736184294123,0.27046,3697.0,3696.9,0.27045]
[1736184294920,3.6462,3697.2,3696.4,7.51086143]
[1736184294921,0.67611,3697.1,3696.4,7.51086143]
[1736184295124,0.27048,3696.6,3696.5,0.27047]
[1736184295426,0.27048,3696.6,3696.5,41.07047]
[1736184296120,0.27048,3696.6,3696.5,40.8]
[1736184296322,0.27048,3696.5,3696.4,2.1472304]
[1736184296519,0.27049,3696.4,3696.3,0.27049]
[1736184297226,0.2705,3696.3,3696.2,0.2705]
[1736184298831,0.2705,3696.3,3696.1,2.1472304]
[1736184298832,0.4289,3696.5,3696.1,2.1472304]
[1736184299021,0.4289,3696.5,3696.1,2.4177304]
[1736184299022,0.2705,3696.2,3696.1,2.4177304]
[1736184300227,3.40236825,3696.2,3696.1,2.4177304]
[1736184301723,0.27051,3696.1,3696.0,40.8]
[1736184302025,3.2078,3696.2,3696.1,0.27051]
[1736184302228,4.17926915,3696.4,3696.0,42.9472304]
[1736184302424,4.17926915,3696.4,3696.3,2.4177304]
[1736184302829,4.17926915,3696.4,3696.3,3.5517304]
[1736184303031,5.17289206,3696.6,3696.5,0.27048]
[1736184303525,5.17289206,3696.6,3696.5,41.07048]
[1736184303924,5.17289206,3696.6,3696.5,44.3517104]
[1736184304431,3.13309394,3696.9,3696.8,0.27046]
[1736184304727,3.13309394,3696.9,3696.8,2.4176904]
[1736184305432,3.13309394,3697.1,3696.8,2.1472304]
[1736184305735,3.13309394,3697.1,3696.7,3.2078]
[1736184305736,3.13309394,3697.1,3697.0,2.4176704]
[1736184307033,3.59019394,3697.2,3697.0,2.1472304]
[1736184307223,3.59019394,3697.2,3697.1,0.27044]
[1736184308026,3.13309394,3697.2,3697.1,0.27044]
[1736184308223,3.13309394,3697.2,3697.1,3.47824]
[1736184308724,3.40352394,3697.2,3697.1,3.2078]
[1736184309124,3.80917394,3697.2,3696.6,0.27047]
[1736184309325,4.0768,3697.1,3696.4,6.37686143]
[1736184309530,0.27047,3696.7,3696.6,0.27047]
[1736184310437,0.27046,3696.9,3696.8,0.27045]
[1736184310734,9.24969206,3697.1,3697.0,0.27044]
[1736184311335,6.04189206,3697.1,3697.0,0.27044]
[1736184311540,6.04189206,3697.1,3696.5,2.1472304]
[1736184311830,6.04189206,3697.1,3696.6,0.27047]
[1736184311831,0.27047,3696.7,3696.6,0.27047]
[1736184312039,0.67614,3696.9,3696.3,3.2078]
[1736184312333,0.27049,3696.4,3696.3,3.2078]
[1736184312536,0.2705,3696.3,3696.2,4.22963103]
[1736184312736,0.6885,3696.3,3696.2,3.53983103]
[1736184313036,0.27051,3696.1,3696.0,6.34444655]
[1736184313344,0.27053,3695.8,3695.7,0.27053]
[1736184313935,0.27054,3695.7,3695.6,2.4177704]
[1736184314131,0.27056,3695.4,3695.3,5.6255904]
[1736184314337,0.27056,3695.4,3695.3,2.4177904]
[1736184315135,3.2078,3695.7,3695.0,2.1472304]
[1736184315332,3.2078,3695.3,3694.7,2.1472304]
[1736184315638,0.2706,3694.8,3694.7,2.4178404]
[1736184315833,0.2706,3694.8,3694.7,0.27061]
[1736184316034,0.8706,3695.2,3694.4,8.49167695]
[1736184316338,0.8706,3695.2,3694.6,0.27062]
[1736184316339,0.27062,3694.7,3694.6,0.27062]
[1736184316534,3.99890236,3695.2,3694.6,0.27062]
[1736184316838,0.27061,3694.7,3694.6,0.27062]
[1736184317433,0.27058,3695.1,3694.5,41.07062]
[1736184317638,0.4403,3694.6,3694.5,41.07062]
[1736184317833,0.71092,3694.6,3694.5,41.07062]
[1736184318139,0.4403,3694.6,3694.5,41.07062]
[1736184320745,0.71092,3694.6,3694.5,41.07062]
[1736184320942,0.4403,3694.6,3694.5,41.07062]
[1736184321439,0.2706,3694.9,3694.5,40.8]
[1736184321639,0.2706,3694.8,3694.7,2.1472304]
[1736184321839,0.27062,3694.7,3694.5,41.07062]
[1736184322037,0.27062,3694.6,3694.5,40.8]
[1736184322240,0.27062,3694.6,3694.5,41.07062]
[1736184322440,0.27062,3694.7,3694.5,40.8]
[1736184322639,0.27062,3694.7,3694.6,0.27062]
[1736184322942,0.27061,3694.8,3694.7,0.27061]
[1736184323243,0.4159,3695.1,3694.7,0.27061]
[1736184323244,0.4159,3695.1,3694.7,2.4178404]
[1736184323440,0.2706,3694.9,3694.7,2.4178404]
[1736184323938,0.4159,3695.1,3694.7,2.4178404]
[1736184324146,0.2706,3694.8,3694.7,2.4178404]
[1736184324339,0.2706,3694.9,3694.8,0.2706]
[1736184325037,0.4159,3695.1,3694.7,2.1472304]
[1736184325235,0.27059,3695.0,3694.9,0.27059]
[1736184325840,0.68649,3695.1,3695.0,0.27059]
[1736184326245,0.4159,3695.1,3695.0,2.4178204]
[1736184327244,3.2078,3695.3,3695.0,2.1472304]
[1736184327441,3.2078,3695.3,3695.2,0.27058]
[1736184327748,3.12830236,3695.8,3695.7,0.27054]
[1736184327938,3.12830236,3695.8,3695.7,2.4177704]
[1736184328248,3.12830236,3695.8,3695.7,43.2177704]
[1736184328541,2.22291236,3695.8,3695.7,44.3517704]
[1736184328843,0.27048,3696.6,3696.5,0.27047]
[1736184329040,1.17518133,3696.7,3696.6,0.27047]
[1736184329041,1.44565133,3696.7,3696.6,0.27047]
[1736184329747,0.69347,3696.7,3696.6,0.27047]
[1736184330245,0.2705,3696.4,3696.3,0.27049]
[1736184330444,0.423,3696.7,3696.1,2.1472304]
[1736184330747,0.2705,3696.2,3696.1,2.4177404]
[1736184331147,0.27052,3695.9,3695.8,2.4177604]
[1736184331348,0.27052,3696.0,3695.9,0.27052]
[1736184332843,0.27052,3696.0,3695.6,0.27054]
[1736184332844,0.27055,3695.7,3695.6,0.27054]
[1736184333046,0.27054,3695.8,3695.7,0.27053]
[1736184333443,3.2078,3696.0,3695.5,2.1472304]
[1736184333644,0.27053,3695.9,3695.8,2.4177604]
[1736184336847,0.27053,3695.9,3695.8,2.1472304]
[1736184337048,0.27053,3695.8,3695.7,0.27053]
[1736184337239,0.27055,3695.7,3695.6,0.27054]
[1736184338050,0.27057,3695.3,3695.2,0.27057]
[1736184338544,0.27059,3695.0,3694.9,40.8]
[1736184338748,0.2706,3694.9,3694.8,2.4178304]
[1736184339250,3.2078,3695.1,3694.7,40.8]
[1736184339251,0.27061,3694.8,3694.7,40.8]
[1736184339449,0.27061,3694.7,3694.6,0.27062]
[1736184340348,0.27061,3694.9,3694.5,2.1472304]
[1736184340659,0.27062,3694.6,3694.5,2.4178504]
[1736184341251,0.27064,3694.3,3694.2,5.3550304]
[1736184341451,0.27066,3694.1,3694.0,0.4245]
[1736184341660,0.27066,3694.0,3693.9,2.4179004]
[1736184341849,0.27066,3694.1,3694.0,0.27066]
[1736184343259,3.2078,3694.2,3693.9,42.9472304]
[1736184343461,0.27066,3694.0,3693.9,43.2179004]
[1736184343653,0.27066,3694.0,3693.9,40.8]
[1736184344557,0.8821,3694.1,3693.3,5.3550304]
[1736184344761,0.4464,3693.9,3693.4,0.2707]
[1736184344953,0.4464,3693.9,3693.6,2.1472304]
[1736184345151,0.27068,3693.8,3693.7,40.8]
[1736184345353,0.27068,3693.8,3693.7,41.07069]
[1736184345855,0.27068,3693.8,3693.7,40.8]
[1736184347149,0.4379,3694.1,3693.7,40.8]
[1736184347350,0.70856,3694.1,3694.0,0.27066]
[1736184347560,3.47845,3694.2,3694.1,0.27066]
[1736184347758,0.27066,3694.1,3694.0,0.27066]
[1736184347957,3.88443,3694.2,3693.8,0.4439]
[1736184348262,0.27068,3693.8,3693.7,41.07068]
[1736184348958,3.2078,3694.2,3693.7,40.8]
[1736184349152,3.47845,3694.2,3694.1,0.27066]
[1736184349354,0.27066,3694.1,3694.0,0.27066]
[1736184349648,3.2078,3694.2,3694.1,0.27066]
[1736184350450,0.27064,3694.4,3694.3,0.27064]
[1736184351662,0.27062,3694.6,3694.5,0.27062]
[1736184351958,0.27064,3694.5,3694.4,0.27063]
[1736184354657,0.27064,3694.4,3694.3,0.27064]
[1736184355165,3.88434,3694.7,3694.1,40.8]
[1736184355363,0.27065,3694.3,3694.2,0.27064]
[1736184356158,0.27065,3694.3,3694.1,40.8]
[1736184356159,0.27065,3694.2,3694.1,40.8]
[1736184356367,0.27068,3693.9,3693.8,0.27067]
[1736184358362,0.21852721,3693.9,3693.8,0.27067]
[1736184360365,0.21852721,3693.9,3693.6,0.4521]
[1736184360366,0.27066,3694.1,3694.0,0.27066]
[1736184360870,0.67665,3694.1,3693.6,0.4521]
[1736184361069,0.27069,3693.8,3693.7,0.27068]
[1736184361958,0.27069,3693.6,3693.5,41.07069]
[1736184362868,0.27069,3693.6,3693.5,40.8]